fUSD/lending_fUSD_20240412
["ID","MTS","AMOUNT","RATE_DAILY","PERIOD"]
[322268018,1712920264350,-500.0,0.0003041,2]
[322268019,1712920264359,-500.0,0.0003041,2]
[322268020,1712920264370,-500.0,0.0003041,2]
[322268021,1712920264379,-834.74,0.0003041,2]
[322268022,1712920264388,-500.0,0.0003041,2]
[322268023,1712920264397,-500.0,0.0003041,2]
[322268024,1712920264406,-503.47,0.0003041,2]
[322268025,1712920264414,-550.78,0.0003041,2]
[322268026,1712920264424,-504.37,0.0003041,2]
[322268027,1712920264433,-667.44,0.0003041,2]
[322268028,1712920264442,-500.0,0.0003041,2]
[322268029,1712920264451,-730.85,0.0003041,2]
[322268030,1712920264460,-500.0,0.0003041,2]
[322268031,1712920264469,-1391.19,0.0003041,2]
[322268032,1712920264479,-724.59,0.0003041,2]
[322268033,1712920264487,-652.05,0.0003041,2]
[322268034,1712920264496,-2207.75,0.0003041,2]
[322268035,1712920264505,-500.0,0.0003041,2]
[322268036,1712920264514,-500.0,0.0003041,2]
[322268037,1712920264524,-500.0,0.0003041,2]
[322268038,1712920264533,-500.0,0.0003041,2]
[322268039,1712920264542,-1077.64,0.0003041,2]
[322268040,1712920264551,-500.0,0.0003041,2]
[322268041,1712920264561,-500.0,0.0003041,2]
[322268042,1712920264570,-500.0,0.0003041,2]
[322268043,1712920264580,-500.0,0.0003041,2]
[322268044,1712920264589,-500.0,0.0003041,2]
[322268045,1712920264598,-500.0,0.0003041,2]
[322268046,1712920264607,-1068.06,0.0003041,2]
[322268047,1712920264618,-1520.01,0.0003041,2]
[322268048,1712920264627,-2261.68,0.0003041,2]
[322268049,1712920264637,-1340.25,0.0003041,2]
[322268050,1712920264646,-500.0,0.0003041,2]
[322268051,1712920264656,-500.0,0.0003041,2]
[322268052,1712920264797,-1033.56,0.0003041,2]
[322268053,1712920264815,-5530.8,0.0003041,2]
[322268054,1712920264825,-500.0,0.0003041,2]
[322268055,1712920264835,-500.0,0.0003041,2]
[322268056,1712920264846,-930.87,0.0003041,2]
[322268057,1712920264858,-821.08,0.0003041,2]
[322268058,1712920264870,-500.0,0.0003041,2]
[322268059,1712920264878,-500.0,0.0003041,2]
[322268060,1712920264889,-500.0,0.0003041,2]
[322268061,1712920264898,-1035.94,0.0003041,2]
[322268062,1712920264907,-1904.72,0.0003041,2]
[322268063,1712920264916,-1717.34,0.0003041,2]
[322268064,1712920264926,-500.0,0.0003041,2]
[322268065,1712920264937,-500.0,0.0003041,2]
[322268066,1712920264946,-2052.73,0.0003041,2]
[322268067,1712920264957,-641.93,0.0003041,2]
[322268068,1712920264968,-604.09,0.0003041,2]
[322268069,1712920264978,-1124.32,0.0003041,2]
[322268070,1712920264989,-1070.46,0.0003041,2]
[322268071,1712920264999,-500.0,0.0003041,2]
[322268072,1712920265008,-1062.21,0.0003041,2]
[322268073,1712920265018,-604.39,0.0003041,2]
[322268074,1712920265027,-500.0,0.0003041,2]
[322268075,1712920265037,-1229.15,0.0003041,2]
[322268076,1712920265047,-500.0,0.0003041,2]
[322268077,1712920265057,-9924.52,0.0003041,2]
[322268078,1712920265066,-374.041212,0.0003041,2]
[322268079,1712920265076,-888.39,0.0003041,2]
[322268080,1712920265085,-1186.85,0.0003041,2]
[322268081,1712920265095,-500.0,0.0003041,2]
[322268082,1712920265105,-500.0,0.0003041,2]
[322268083,1712920265120,-500.0,0.0003041,2]
[322268084,1712920265170,-618.15,0.0003041,2]
[322268085,1712920265180,-500.0,0.0003041,2]
[322268086,1712920265190,-500.0,0.0003041,2]
[322268087,1712920265199,-510.32,0.0003041,2]
[322268088,1712920265209,-800.47,0.0003041,2]
[322268089,1712920265218,-684.38,0.0003041,2]
[322268090,1712920265227,-844.56,0.0003041,2]
[322268091,1712920265238,-500.0,0.0003041,2]
[322268092,1712920265247,-512.23,0.0003041,2]
[322268093,1712920265256,-500.0,0.0003041,2]
[322268094,1712920265266,-1528.81,0.0003041,2]
[322268095,1712920265276,-763.34,0.0003041,2]
[322268096,1712920265286,-500.0,0.0003041,2]
[322268097,1712920265295,-495.86534136,0.0003041,2]
[322268098,1712920265307,-3764.32,0.0003041,2]
[322268099,1712920265317,-1505.66,0.0003041,2]
[322268100,1712920265327,-500.0,0.0003041,2]
[322268101,1712920265336,-500.0,0.0003041,2]
[322268102,1712920265346,-925.96,0.0003041,2]
[322268103,1712920265356,-500.0,0.0003041,2]
[322268104,1712920265367,-500.0,0.0003041,2]
[322268105,1712920265377,-500.0,0.0003041,2]
[322268106,1712920265387,-500.0,0.00030684,2]
[322268107,1712920265397,-500.0,0.00030684,2]
[322268108,1712920265406,-2625.19,0.00030684,2]
[322268109,1712920265416,-500.0,0.00030684,2]
[322268110,1712920265426,-500.0,0.00030684,2]
[322268111,1712920265435,-500.0,0.00030684,2]
[322268112,1712920265445,-500.0,0.00030684,2]
[322268113,1712920265455,-500.0,0.00030684,2]
[322268114,1712920265464,-500.0,0.00030684,2]
[322268115,1712920265474,-500.0,0.00030684,2]
[322268116,1712920265484,-592.61658156,0.00030684,2]
[322268117,1712920265493,-513.6,0.00030684,2]
[322268118,1712920265502,-500.0,0.00030684,2]
[322268119,1712920265512,-1076.28,0.00030684,2]
[322268120,1712920265522,-279.95656162,0.00030684,2]
[322268121,1712920265532,-4360.31,0.00030684,2]
[322268122,1712920265541,-578.33,0.00030684,2]
[322268123,1712920265551,-589.66,0.00030684,2]
[322268124,1712920265560,-500.0,0.00030684,2]
[322268125,1712920265570,-500.0,0.00030684,2]
[322268126,1712920265580,-500.0,0.00030684,2]
[322268127,1712920265589,-500.0,0.00030684,2]
[322268128,1712920265599,-834.74,0.00030684,2]
[322268129,1712920265610,-500.0,0.00030684,2]
[322268130,1712920265620,-500.0,0.00030684,2]
[322268131,1712920265630,-503.47,0.00030684,2]
[322268132,1712920265640,-550.78,0.00030684,2]
[322268133,1712920265649,-504.37,0.00030684,2]
[322268134,1712920265659,-667.44,0.00030684,2]
[322268135,1712920265669,-500.0,0.00030684,2]
[322268136,1712920265679,-730.85,0.00030684,2]
[322268137,1712920265688,-500.0,0.00030684,2]
[322268138,1712920265698,-1391.19,0.00030684,2]
[322268139,1712920265707,-724.59,0.00030684,2]
[322268140,1712920265717,-652.05,0.00030684,2]
[322268141,1712920265727,-2207.75,0.00030684,2]
[322268142,1712920265737,-500.0,0.00030684,2]
[322268143,1712920265746,-500.0,0.00030684,2]
[322268144,1712920265757,-247.24739926,0.00030684,2]
[322268145,1712920265767,-500.0,0.00030684,2]
[322268146,1712920265778,-1077.64,0.00030684,2]
[322268147,1712920265790,-500.0,0.00030684,2]
[322268148,1712920265799,-500.0,0.00030684,2]
[322268149,1712920265812,-500.0,0.00030684,2]
[322268150,1712920265822,-500.0,0.00030684,2]
[322268151,1712920265833,-500.0,0.00030684,2]
[322268152,1712920265844,-226.43655361,0.00030684,2]
[322268153,1712920265854,-1068.06,0.00030684,2]
[322268154,1712920265866,-1520.01,0.00030684,2]
[322268155,1712920265877,-2261.68,0.00030684,2]
[322268156,1712920265889,-1340.25,0.00030684,2]
[322268157,1712920265898,-500.0,0.00030684,2]
[322268158,1712920265908,-500.0,0.00030684,2]
[322268159,1712920265917,-1033.56,0.00030684,2]
[322268160,1712920265927,-5530.8,0.00030684,2]
[322268161,1712920265937,-500.0,0.00030684,2]
[322268162,1712920265946,-500.0,0.00030684,2]
[322268163,1712920265956,-930.87,0.00030684,2]
[322268164,1712920265966,-821.08,0.00030684,2]
[322268165,1712920265975,-500.0,0.00030684,2]
[322268166,1712920265985,-500.0,0.00030684,2]
[322268167,1712920265994,-500.0,0.00030684,2]
[322268168,1712920266005,-1035.94,0.00030684,2]
[322268169,1712920266014,-1904.72,0.00030684,2]
[322268170,1712920266025,-1717.34,0.00030684,2]
[322268171,1712920266034,-500.0,0.00030684,2]
[322268172,1712920266045,-500.0,0.00030684,2]
[322268173,1712920266054,-2052.73,0.00030684,2]
[322268174,1712920266064,-641.93,0.00030684,2]
[322268175,1712920266075,-604.09,0.00030684,2]
[322268176,1712920266084,-1124.32,0.00030684,2]
[322268177,1712920266094,-1070.46,0.00030684,2]
[322268178,1712920266103,-500.0,0.00030684,2]
[322268179,1712920266113,-1062.21,0.00030684,2]
[322268180,1712920266124,-604.39,0.00030684,2]
[322268181,1712920266134,-500.0,0.00030684,2]
[322268182,1712920266144,-1229.15,0.00030684,2]
[322268183,1712920266155,-500.0,0.00030684,2]
[322268184,1712920266165,-9924.52,0.00030684,2]
[322268185,1712920266176,-888.39,0.00030684,2]
[322268186,1712920266187,-1186.85,0.00030684,2]
[322268187,1712920266198,-487.16004192,0.00030684,2]
[322268188,1712920266209,-500.0,0.00030684,2]
[322268189,1712920266219,-500.0,0.00030684,2]
[322268190,1712920266228,-618.15,0.00030684,2]
[322268191,1712920266238,-500.0,0.00030684,2]
[322268192,1712920266248,-500.0,0.00030684,2]
[322268193,1712920266258,-510.32,0.00030684,2]
[322268194,1712920266268,-800.47,0.00030684,2]
[322268195,1712920266278,-684.38,0.00030684,2]
[322268196,1712920266287,-844.56,0.00030684,2]
[322268197,1712920266297,-500.0,0.00030684,2]
[322268198,1712920266307,-512.23,0.00030684,2]
[322268199,1712920266317,-453.43370357,0.00030684,2]
[322268200,1712920266326,-1528.81,0.00030684,2]
[322268201,1712920266336,-763.34,0.00030684,2]
[322268202,1712920266345,-500.0,0.00030684,2]
[322268203,1712920266355,-3764.32,0.00030684,2]
[322268204,1712920266366,-1505.66,0.00030684,2]
[322268205,1712920266377,-500.0,0.00030684,2]
[322268206,1712920266387,-500.0,0.00030684,2]
[322268207,1712920266398,-925.96,0.00030684,2]
[322268208,1712920266408,-500.0,0.00030684,2]
[322268209,1712920266418,-500.0,0.00030684,2]
[322268210,1712920266428,-500.0,0.00030684,2]
[322268211,1712920266437,-845.23,0.000309,2]
[322268212,1712920266447,-632.27,0.000309,2]
[322268213,1712920266456,-500.0,0.00030958,2]
[322268214,1712920266466,-500.0,0.00030958,2]
[322268215,1712920266475,-2625.19,0.00030958,2]
[322268216,1712920266485,-500.0,0.00030958,2]
[322268217,1712920266494,-500.0,0.00030958,2]
[322268218,1712920266504,-313.76425975,0.00030958,2]
[322268219,1712920266513,-500.0,0.00030958,2]
[322268220,1712920266522,-500.0,0.00030958,2]
[322268221,1712920266532,-500.0,0.00030958,2]
[322268222,1712920266542,-500.0,0.00030958,2]
[322268223,1712920266551,-513.6,0.00030958,2]
[322268224,1712920266561,-500.0,0.00030958,2]
[322268225,1712920266571,-1076.28,0.00030958,2]
[322268226,1712920266581,-4360.31,0.00030958,2]
[322268227,1712920266591,-578.33,0.00030958,2]
[322268228,1712920266601,-589.66,0.00030958,2]
[322268229,1712920266612,-500.0,0.00030958,2]
[322268230,1712920266624,-500.0,0.00030958,2]
[322268231,1712920266634,-500.0,0.00030958,2]
[322268232,1712920266645,-500.0,0.00030958,2]
[322268233,1712920266656,-834.74,0.00030958,2]
[322268234,1712920266668,-500.0,0.00030958,2]
[322268235,1712920266679,-500.0,0.00030958,2]
[322268236,1712920266690,-503.47,0.00030958,2]
[322268237,1712920266701,-550.78,0.00030958,2]
[322268238,1712920266710,-504.37,0.00030958,2]
[322268239,1712920266722,-667.44,0.00030958,2]
[322268240,1712920266733,-555.77272944,0.00030958,2]
[322268241,1712920266745,-730.85,0.00030958,2]
[322268242,1712920266755,-500.0,0.00030958,2]
[322268243,1712920266767,-1391.19,0.00030958,2]
[322268244,1712920266777,-724.59,0.00030958,2]
[322268245,1712920266787,-652.05,0.00030958,2]
[322268246,1712920266796,-2207.75,0.00030958,2]
[322268247,1712920266810,-500.0,0.00030958,2]
[322268248,1712920266821,-500.0,0.00030958,2]
[322268249,1712920266831,-500.0,0.00030958,2]
[322268250,1712920266842,-1077.64,0.00030958,2]
[322268251,1712920266853,-500.0,0.00030958,2]
[322268252,1712920266864,-500.0,0.00030958,2]
[322268253,1712920266874,-500.0,0.00030958,2]
[322268254,1712920266886,-500.0,0.00030958,2]
[322268255,1712920266896,-482.66,0.00030958,2]
[322268256,1712920266906,-1068.06,0.00030958,2]
[322268257,1712920266917,-1520.01,0.00030958,2]
[322268258,1712920266926,-2261.68,0.00030958,2]
[322268259,1712920266937,-1340.25,0.00030958,2]
[322268260,1712920266947,-500.0,0.00030958,2]
[322268261,1712920266957,-500.0,0.00030958,2]
[322268262,1712920266968,-1033.56,0.00030958,2]
[322268263,1712920266981,-5530.8,0.00030958,2]
[322268264,1712920266990,-500.0,0.00030958,2]
[322268265,1712920267000,-500.0,0.00030958,2]
[322268266,1712920267009,-930.87,0.00030958,2]
[322268267,1712920267019,-821.08,0.00030958,2]
[322268268,1712920267029,-500.0,0.00030958,2]
[322268269,1712920267039,-500.0,0.00030958,2]
[322268270,1712920267048,-500.0,0.00030958,2]
[322268271,1712920267058,-1035.94,0.00030958,2]
[322268272,1712920267067,-1904.72,0.00030958,2]
[322268273,1712920267077,-1717.34,0.00030958,2]
[322268274,1712920267086,-500.0,0.00030958,2]
[322268275,1712920267095,-170.56,0.00030958,2]
[322268276,1712920267105,-2052.73,0.00030958,2]
[322268277,1712920267114,-641.93,0.00030958,2]
[322268278,1712920267124,-604.09,0.00030958,2]
[322268279,1712920267134,-1124.32,0.00030958,2]
[322268280,1712920267143,-1070.46,0.00030958,2]
[322268281,1712920267153,-500.0,0.00030958,2]
[322268282,1712920267162,-1062.21,0.00030958,2]
[322268283,1712920267171,-604.39,0.00030958,2]
[322268284,1712920267181,-500.0,0.00030958,2]
[322268285,1712920267190,-1229.15,0.00030958,2]
[322268286,1712920267200,-500.0,0.00030958,2]
[322268287,1712920267210,-9924.52,0.00030958,2]
[322268288,1712920267220,-888.39,0.00030958,2]
[322268289,1712920267229,-1186.85,0.00030958,2]
[322268290,1712920267239,-500.0,0.00030958,2]
[322268291,1712920267249,-500.0,0.00030958,2]
[322268292,1712920267258,-618.15,0.00030958,2]
[322268293,1712920267267,-500.0,0.00030958,2]
[322268294,1712920267277,-500.0,0.00030958,2]
[322268295,1712920267286,-510.32,0.00030958,2]
[322268296,1712920267296,-800.47,0.00030958,2]
[322268297,1712920267305,-684.38,0.00030958,2]
[322268298,1712920267315,-844.56,0.00030958,2]
[322268299,1712920267324,-500.0,0.00030958,2]
[322268300,1712920267333,-512.23,0.00030958,2]
[322268301,1712920267343,-1528.81,0.00030958,2]
[322268302,1712920267355,-763.34,0.00030958,2]
[322268303,1712920267365,-500.0,0.00030958,2]
[322268304,1712920267375,-3764.32,0.00030958,2]
[322268305,1712920267385,-1505.66,0.00030958,2]
[322268306,1712920267394,-500.0,0.00030958,2]
[322268307,1712920267532,-500.0,0.00030958,2]
[322268308,1712920267542,-925.96,0.00030958,2]
[322268309,1712920267551,-500.0,0.00030958,2]
[322268310,1712920267560,-500.0,0.00030958,2]
[322268311,1712920267569,-500.0,0.00030958,2]
[322268312,1712920267578,-500.0,0.00031232,2]
[322268313,1712920267587,-500.0,0.00031232,2]
[322268314,1712920267596,-2625.19,0.00031232,2]
[322268315,1712920267605,-500.0,0.00031232,2]
[322268316,1712920267614,-491.20113633,0.00031232,2]
[322268317,1712920267625,-500.0,0.00031232,2]
[322268318,1712920267635,-500.0,0.00031232,2]
[322268319,1712920267645,-500.0,0.00031232,2]
[322268320,1712920267655,-500.0,0.00031232,2]
[322268321,1712920267666,-513.6,0.00031232,2]
[322268322,1712920267675,-500.0,0.00031232,2]
[322268323,1712920267685,-1076.28,0.00031232,2]
[322268324,1712920267695,-4360.31,0.00031232,2]
[322268325,1712920267707,-578.33,0.00031232,2]
[322268326,1712920267717,-589.66,0.00031232,2]
[322268327,1712920267726,-500.0,0.00031232,2]
[322268328,1712920267736,-537.22255855,0.00031232,2]
[322268329,1712920267745,-500.0,0.00031232,2]
[322268330,1712920267755,-294.80805099,0.00031232,2]
[322268331,1712920267993,-349.454034,0.00031232,2]
[322268332,1712920268005,-190.47791501,0.00031232,2]
[322268333,1712920268014,-500.0,0.00031232,2]
[322268334,1712920268023,-500.0,0.00031232,2]
[322268335,1712920268032,-500.0,0.00031232,2]
[322268336,1712920268042,-503.47,0.00031232,2]
[322268337,1712920268050,-550.78,0.00031232,2]
[322268338,1712920268059,-504.37,0.00031232,2]
[322268339,1712920268069,-667.44,0.00031232,2]
[322268340,1712920268080,-479.19568799,0.00031232,2]
[322268341,1712920268295,-500.0,0.00027671,2]
[322268342,1712920268304,-206.47497915,0.00027945,2]
[322268343,1712920268315,-306.82405965,0.00027945,2]
[322268344,1712920268335,-99.9409612,0.00027945,2]
[322268345,1712920268345,-305.04576222,0.00028219,2]
[322268346,1712920268357,-308.19423778,0.00028219,2]
[322268347,1712920268366,-613.24,0.00028493,2]
[322268348,1712920268376,-613.24,0.00028767,2]
[322268349,1712920268385,-150.06,0.00029,2]
[322268350,1712920268395,-150.06,0.00029,2]
[322268351,1712920268404,-150.06,0.00029,2]
[322268352,1712920268414,-150.06,0.00029,2]
[322268353,1712920268423,-150.06,0.00029,2]
[322268354,1712920268433,-150.06,0.00029,2]
[322268355,1712920268442,-150.06,0.00029,2]
[322268356,1712920268452,-150.06,0.00029,2]
[322268357,1712920268461,-150.06,0.00029,2]
[322268358,1712920268471,-613.24,0.00029041,2]
[322268359,1712920268480,-613.24,0.00029315,2]
[322268360,1712920268490,-83.73259505,0.0003041,2]
[322268361,1712920268504,-599.50740495,0.0003041,2]
[322268362,1712920268514,-683.24,0.00030684,2]
[322268363,1712920268523,-683.24,0.00030958,2]
[322268364,1712920268533,-251.65431201,0.00031232,2]
[322268365,1712920268542,-500.0,0.00031232,2]
[322268366,1712920268552,-1391.19,0.00031232,2]
[322268367,1712920268561,-724.59,0.00031232,2]
[322268368,1712920268570,-652.05,0.00031232,2]
[322268369,1712920268579,-2207.75,0.00031232,2]
[322268370,1712920268589,-500.0,0.00031232,2]
[322268371,1712920268599,-500.0,0.00031232,2]
[322268372,1712920268609,-500.0,0.00031232,2]
[322268373,1712920268618,-1077.64,0.00031232,2]
[322268374,1712920268628,-500.0,0.00031232,2]
[322268375,1712920268638,-289.00197489,0.00031232,2]
[322268376,1712920268647,-500.0,0.00031232,2]
[322268377,1712920268656,-500.0,0.00031232,2]
[322268378,1712920268666,-1068.06,0.00031232,2]
[322268379,1712920268675,-1520.01,0.00031232,2]
[322268380,1712920268685,-2261.68,0.00031232,2]
[322268381,1712920268694,-1340.25,0.00031232,2]
[322268382,1712920268703,-500.0,0.00031232,2]
[322268383,1712920268713,-500.0,0.00031232,2]
[322268384,1712920268722,-1033.56,0.00031232,2]
[322268385,1712920268732,-5530.8,0.00031232,2]
[322268386,1712920268743,-500.0,0.00031232,2]
[322268387,1712920268752,-500.0,0.00031232,2]
[322268388,1712920268761,-930.87,0.00031232,2]
[322268389,1712920268770,-821.08,0.00031232,2]
[322268390,1712920268779,-500.0,0.00031232,2]
[322268391,1712920268788,-500.0,0.00031232,2]
[322268392,1712920268798,-500.0,0.00031232,2]
[322268393,1712920268811,-1035.94,0.00031232,2]
[322268394,1712920268820,-1904.72,0.00031232,2]
[322268395,1712920268830,-1717.34,0.00031232,2]
[322268396,1712920268839,-500.0,0.00031232,2]
[322268397,1712920268848,-216.52007577,0.00031232,2]
[322268398,1712920268877,-150.06,0.00029,2]
[322268399,1712920268888,-639.93777439,0.00031232,2]
[322268400,1712920268899,-495.56476405,0.00031232,2]
[322268401,1712920268911,-700.70738579,0.00031232,2]
[322268402,1712920268920,-124.49919915,0.00031232,2]
[322268403,1712920268941,-150.06,0.00029,2]
[322268404,1712920268952,-613.24,0.00029589,2]
[322268405,1712920268963,-236.7,0.00031232,2]
[322268406,1712920269253,-307.82528088,0.000209,2]
[322268407,1712920269264,-196.12206755,0.00027397,2]
[322268408,1712920269277,-303.87793245,0.00027397,2]
[322268409,1712920269287,-500.0,0.00027397,2]
[322268410,1712920269297,-500.0,0.00027671,2]
[322268411,1712920269307,-500.0,0.00027671,2]
[322268412,1712920269317,-389.24331237,0.00027945,2]
[322268413,1712920269328,-178.06575483,0.00027945,2]
[322268414,1712920269338,-150.06,0.00029,2]
[322268415,1712920269348,-150.06,0.00029,2]
[322268416,1712920269358,-150.06,0.00029,2]
[322268417,1712920269368,-150.06,0.00029,2]
[322268418,1712920269377,-150.06,0.00029,2]
[322268419,1712920269387,-150.06,0.00029,2]
[322268420,1712920269396,-150.06,0.00029,2]
[322268421,1712920269405,-150.06,0.00029,2]
[322268422,1712920269415,-150.06,0.00029,2]
[322268423,1712920269424,-150.06,0.00029,2]
[322268424,1712920269435,-49.46576269,0.00029,2]
[322268425,1712920269451,-100.59423731,0.00029,2]
[322268426,1712920269460,-150.06,0.00029,2]
[322268427,1712920269470,-150.06,0.00029,2]
[322268428,1712920269480,-150.06,0.00029,2]
[322268429,1712920269489,-150.06,0.00029,2]
[322268430,1712920269498,-150.06,0.00029,2]
[322268431,1712920269507,-150.06,0.00029,2]
[322268432,1712920269646,-150.06,0.00029,2]
[322268433,1712920269658,-613.24,0.00029863,2]
[322268434,1712920269668,-613.24,0.00030136,2]
[322268435,1712920269677,-263.76024561,0.0003041,2]
[322268443,1712920419069,10000.0,0.00029998,60]
[322268445,1712920628180,755.4400865,0.00019696,2]
[322268446,1712921195331,-155.0,0.00020987,2]
[322268447,1712921195352,-155.0,0.00020988,2]
[322268448,1712921195372,-1000.0,0.00021,2]
[322268449,1712921195393,-1000.0,0.000215,2]
[322268450,1712921195414,-300.0,0.000218,2]
[322268451,1712921195433,-6390.0,0.00021886,2]
[322268504,1712921431605,-388.17595752,0.00021666,2]
[322268505,1712921431619,-1646.65965048,0.00021666,2]
[322268506,1712921431630,-2028.94286588,0.00021775,2]
[322268507,1712921431646,-1141.61713412,0.00021775,2]
[322268508,1712921431657,-1545.062,0.00021786,2]
[322268509,1712921431667,-2249.19956891,0.00021886,2]
[322268510,1712921431679,-4739.62129539,0.00021886,2]
[322268511,1712921431692,-260.37870461,0.00021886,2]
[322268512,1712921431703,-805.58072125,0.00021886,2]
[322268513,1712921431733,-873.29811072,0.00021886,2]
[322268514,1712921431746,-3321.12116803,0.00021886,2]
[322268515,1712921431758,-5000.0,0.00021886,2]
[322268516,1712921431769,-135.06665573,0.00021886,2]
[322268517,1712921431783,-731.15191356,0.00021886,2]
[322268518,1712921431916,-545.54669028,0.00021886,2]
[322268540,1712921437579,-3588.23474043,0.00021886,2]
[322268543,1712921437588,-123.53411781,0.00021918,2]
[322268616,1712921439037,-29.01588219,0.00021918,2]
[322268617,1712921439047,-1512.0,0.000244,2]
[322268618,1712921439057,-480.32,0.00025273,2]
[322268619,1712921439067,-3176.6284223,0.00026025,2]
[322268620,1712921439078,-716.561392,0.00026097,2]
[322268621,1712921439087,-256.87,0.00027195,2]
[322268622,1712921439097,-1000.0,0.00027257,2]
[322268623,1712921439107,-2891.27,0.00027274,2]
[322268624,1712921439118,-326.58,0.00027313,2]
[322268625,1712921439128,-164.90988445,0.00027395,2]
[322268626,1712921439137,-226.51443299,0.00027396,2]
[322268627,1712921439147,-241.68,0.00027397,2]
[322268628,1712921439158,-155.22,0.00027397,2]
[322268629,1712921439168,-164.51,0.00027397,2]
[322268630,1712921439181,-152.55,0.00027397,2]
[322268631,1712921439192,-161.43,0.00027417,2]
[322268632,1712921439203,-250.0,0.00027492,2]
[322268633,1712921439213,-480.32,0.00027537,2]
[322268634,1712921439222,-29912.272,0.00027571,2]
[322268635,1712921439233,-800.0,0.00027644,2]
[322268636,1712921439244,-231.1505,0.00027845,2]
[322268637,1712921439255,-421.7628,0.00027845,2]
[322268638,1712921439267,-7664.7918,0.00027845,2]
[322268639,1712921439276,-376.31026956,0.00028,2]
[322268640,1712921439286,-407.23348641,0.00028666,2]
[322268642,1712921439297,-1000.0,0.00028667,2]
[322268643,1712921439307,-783.91365264,0.00028766,2]
[322268644,1712921439317,-790.4451,0.000289,2]
[322268645,1712921439326,-20180.30698704,0.00028999,2]
[322268646,1712921439339,-6746.82289371,0.00029,2]
[322268647,1712921439348,-2206.5718,0.00029389,2]
[322268648,1712921439359,-500.0,0.00029489,2]
[322268649,1712921439369,-51954.0106,0.00029489,2]
[322268650,1712921439381,-47968.8343,0.00029489,2]
[322268651,1712921439391,-480.32,0.00029801,2]
[322268652,1712921439401,-29999.99,0.00029815,2]
[322268653,1712921439414,-19999.99,0.00029815,2]
[322268654,1712921439424,-1074.88,0.00029815,2]
[322268655,1712921439434,-800.0,0.00029836,2]
[322268656,1712921439445,-256.87,0.00029935,2]
[322268657,1712921439455,-155.0,0.00029998,2]
[322268659,1712921439464,-5677.46353067,0.0003,2]
[322268660,1712921439474,-455.35697942,0.0003,2]
[322268661,1712921439484,-6941.74361707,0.0003,2]
[322268662,1712921439494,-500.0,0.0003,3]
[322268663,1712921439503,-206.0,0.0003,2]
[322268664,1712921439514,-5000.0,0.000301,4]
[322268665,1712921439524,-535.0,0.00030137,2]
[322268666,1712921439533,-643.0,0.00030137,2]
[322268667,1712921439543,-180.0,0.00030258,2]
[322268668,1712921439553,-594.96211674,0.0003041,2]
[322268669,1712921439564,-1603.32385558,0.0003041,4]
[322268670,1712921439573,-1510.0,0.000305,5]
[322268671,1712921439584,-1000.0,0.00030664,2]
[322268672,1712921439594,-407.23348638,0.00030901,2]
[322268673,1712921439604,-1082.2965,0.0003092,2]
[322268674,1712921439613,-1012.36,0.000312,2]